bitfinex/quotes_BTCUSD_20251214
["timestamp","ask_amount","ask_price","bid_price","bid_amount"]
[1765708666699,0.01111889,89937.0,89934.0,0.01111926]
[1765708667595,0.01811889,89937.0,89934.0,0.01111926]
[1765708668106,0.23649707,89937.0,89933.0,0.22238641]
[1765708668328,0.01111901,89936.0,89932.0,0.01111951]
[1765708668535,0.01111901,89936.0,89933.0,0.01111938]
[1765708668737,0.007,89937.0,89934.0,0.01111926]
[1765708668958,0.01111877,89938.0,89934.0,0.23350407]
[1765708669141,0.01756,89939.0,89936.0,0.23349879]
[1765708669345,0.006,89937.0,89936.0,0.23349879]
[1765708670132,0.003,89937.0,89936.0,0.23349879]
[1765708670357,0.003,89937.0,89936.0,0.23449879]
[1765708670553,0.01756,89939.0,89936.0,0.23349879]
[1765708670961,0.003,89937.0,89936.0,0.23349879]
[1765708672441,0.006,89937.0,89936.0,0.01111901]
[1765708673881,0.006,89937.0,89934.0,0.23350407]
[1765708674255,0.006,89937.0,89934.0,0.01111926]
[1765708674461,0.01711889,89937.0,89934.0,0.01111926]
[1765708674667,0.01711889,89937.0,89933.0,0.01111938]
[1765708674668,0.01111901,89936.0,89933.0,0.01111938]
[1765708676122,0.01411901,89936.0,89933.0,0.01111938]
[1765708676984,0.01711901,89936.0,89933.0,0.01111938]
[1765708677185,0.23950014,89936.0,89932.0,0.01111951]
[1765708677648,0.006,89936.0,89933.0,0.01111938]
[1765708677945,0.006,89936.0,89935.0,0.22238283]
[1765708678246,0.003,89936.0,89935.0,0.22238283]
[1765708678432,0.01756,89939.0,89936.0,0.01111901]
[1765708679474,0.01756,89939.0,89937.0,0.22237788]
[1765708679876,0.02867864,89939.0,89936.0,0.001]
[1765708680577,0.01756,89939.0,89936.0,0.01211901]
[1765708681076,0.01756,89939.0,89937.0,0.22237788]
[1765708681236,0.00190069,89949.0,89941.0,0.01111839]
[1765708681440,0.00190069,89949.0,89941.0,0.23348623]
[1765708681441,0.23347116,89947.0,89941.0,0.23348623]
[1765708681643,0.01756,89946.0,89943.0,0.01111815]
[1765708681846,0.01756,89946.0,89944.0,0.22236057]
[1765708682653,0.00190069,89949.0,89946.0,0.01111778]
[1765708682864,0.01756,89948.0,89944.0,0.23347859]
[1765708683074,0.01756,89948.0,89944.0,0.23647859]
[1765708683278,0.01756,89948.0,89944.0,0.23347859]
[1765708683678,0.02867753,89948.0,89944.0,0.23347859]
[1765708684101,0.01756,89948.0,89945.0,0.0111179]
[1765708684755,0.003,89946.0,89945.0,0.0111179]
[1765708684958,0.02867753,89948.0,89945.0,0.0111179]
[1765708685949,0.0130181,89949.0,89946.0,0.23347341]
[1765708685950,0.00190069,89949.0,89946.0,0.23347341]
[1765708686151,0.00190069,89949.0,89946.0,0.01111778]
[1765708686152,0.01756,89947.0,89946.0,0.01111778]
[1765708686310,0.01756,89947.0,89946.0,0.23347341]
[1765708689127,0.01756,89947.0,89946.0,0.01111778]
[1765708689297,0.01756,89947.0,89945.0,0.0111179]
[1765708689519,0.01756,89947.0,89944.0,0.01111802]
[1765708690548,0.01756,89947.0,89944.0,0.23347836]
[1765708691661,0.01756,89947.0,89944.0,0.23447836]
[1765708693047,0.01756,89947.0,89946.0,0.22235563]
[1765708695104,0.01756,89947.0,89944.0,0.23347836]
[1765708697271,0.01756,89947.0,89944.0,0.23447836]
[1765708698236,0.01756,89947.0,89946.0,0.22235563]
[1765708698438,0.01946069,89949.0,89948.0,0.22235069]
[1765708698644,0.01946069,89949.0,89946.0,0.01111778]
[1765708698850,0.01946069,89949.0,89948.0,0.22235069]
[1765708699054,0.01946069,89949.0,89946.0,0.23347107]
[1765708699225,0.01946069,89949.0,89947.0,0.00134266]
[1765708700614,0.01946069,89949.0,89947.0,0.00434266]
[1765708700994,0.01946069,89949.0,89947.0,0.00834266]
[1765708702850,0.01946069,89949.0,89948.0,0.22235069]
[1765708704288,0.01946069,89949.0,89948.0,0.22935069]
[1765708704805,0.01946069,89949.0,89948.0,0.007]
[1765708705224,0.2418089,89949.0,89948.0,0.007]
[1765708705954,0.2758889,89949.0,89948.0,0.007]
[1765708706154,0.3272489,89949.0,89948.0,0.007]
[1765708706738,0.3272489,89949.0,89948.0,0.004]
[1765708707141,0.3272489,89949.0,89930.0,0.0002]
[1765708707142,0.01111877,89938.0,89930.0,0.01131975]
[1765708707369,0.01111901,89936.0,89933.0,0.01111938]
[1765708707726,0.01111877,89938.0,89933.0,0.01111938]
[1765708707871,0.01111877,89938.0,89933.0,0.233506]
[1765708708282,0.23349683,89937.0,89933.0,0.01111938]
[1765708708484,0.01111889,89937.0,89933.0,0.01111938]
[1765708708889,0.01111901,89936.0,89930.0,0.01131975]
[1765708709233,0.23350197,89935.0,89931.0,5.168e-05]
[1765708710316,0.01111914,89935.0,89931.0,0.01117131]
[1765708710710,0.01211914,89935.0,89931.0,0.01117131]
[1765708710910,0.01411914,89935.0,89931.0,0.01117131]
[1765708711722,0.01411914,89935.0,89932.0,0.01111951]
[1765708712885,0.01311914,89935.0,89932.0,0.01111951]
[1765708713085,0.01111914,89935.0,89932.0,0.01111951]
[1765708713202,0.01411914,89935.0,89932.0,0.01111951]
[1765708713838,0.23650235,89935.0,89931.0,0.01117131]
[1765708714057,0.01411914,89935.0,89932.0,0.01111951]
[1765708714693,0.01211914,89935.0,89932.0,0.01111951]
[1765708714934,0.01411914,89935.0,89932.0,0.01111951]
[1765708715762,0.01111926,89934.0,89931.0,0.01117131]
[1765708716787,0.01211926,89934.0,89931.0,0.01117131]
[1765708717757,0.01311926,89934.0,89931.0,0.01117131]
[1765708718412,0.01311926,89934.0,89931.0,5.168e-05]
[1765708719919,0.002,89934.0,89932.0,0.22239025]
[1765708720442,0.002,89934.0,89931.0,0.01117131]
[1765708720443,0.01311926,89934.0,89931.0,0.01117131]
[1765708720595,0.01311926,89934.0,89931.0,5.168e-05]
[1765708720797,0.01111926,89934.0,89931.0,5.168e-05]
[1765708721114,0.01311926,89934.0,89931.0,5.168e-05]
[1765708721551,0.01111926,89934.0,89931.0,5.168e-05]
[1765708722555,0.01211926,89934.0,89931.0,5.168e-05]
[1765708722757,0.01111926,89934.0,89931.0,5.168e-05]
[1765708722915,0.01411926,89934.0,89931.0,5.168e-05]
[1765708723899,0.01211926,89934.0,89931.0,5.168e-05]
[1765708724374,0.01511926,89934.0,89931.0,5.168e-05]
[1765708724679,0.01411926,89934.0,89931.0,5.168e-05]
[1765708725231,0.01611926,89934.0,89931.0,5.168e-05]
[1765708725404,0.005,89934.0,89931.0,0.01117131]
[1765708725993,0.005,89934.0,89932.0,0.22239025]
[1765708726879,0.002,89934.0,89932.0,0.22239025]
[1765708727287,0.005,89934.0,89933.0,0.00135161]
[1765708727669,0.00055195,89934.0,89933.0,0.00135161]
[1765708728021,0.00355195,89934.0,89933.0,0.00135161]
[1765708728229,0.00055195,89934.0,89933.0,0.00135161]
[1765708728761,0.00155195,89934.0,89933.0,0.00135161]
[1765708728886,0.001,89934.0,89933.0,0.00135161]
[1765708729294,0.002,89934.0,89933.0,0.00135161]
[1765708729750,0.001,89934.0,89933.0,0.00135161]
[1765708729939,0.001,89934.0,89933.0,0.05137]
[1765708730142,0.002,89934.0,89933.0,0.05137]
[1765708731162,0.002,89934.0,89933.0,0.05582127]
[1765708734329,0.002,89934.0,89933.0,0.13582616]
[1765708735488,0.002,89934.0,89933.0,0.05582127]
[1765708737661,0.00022719,89934.0,89933.0,0.05582127]
[1765708738076,0.00022719,89934.0,89933.0,0.06297353]
[1765708740401,0.00022719,89934.0,89933.0,0.06162192]
[1765708741347,0.00022719,89934.0,89933.0,0.06297323]
[1765708744078,0.00022719,89934.0,89933.0,0.06162192]
[1765708746564,0.00022719,89934.0,89933.0,0.06297323]
[1765708747604,2.61e-05,89934.0,89933.0,0.06297323]
[1765708748588,2.61e-05,89934.0,89933.0,0.06162192]
[1765708751089,2.61e-05,89934.0,89933.0,0.01160353]
[1765708756041,2.61e-05,89934.0,89933.0,0.2339913]
[1765708769318,0.01111778,89946.0,89941.0,0.22236799]
[1765708770602,0.01956,89942.0,89941.0,0.22236799]
[1765708771667,0.02056,89942.0,89941.0,0.22236799]
[1765708771869,0.003,89942.0,89941.0,0.22236799]
[1765708774026,0.003,89942.0,89939.0,0.01111864]
[1765708774873,0.003,89942.0,89941.0,0.00691182]
[1765708775087,0.01111802,89944.0,89941.0,0.00691182]
[1765708775289,0.002,89942.0,89940.0,0.01111852]
[1765708775814,0.01111802,89944.0,89940.0,0.01111852]
[1765708776318,0.002,89942.0,89940.0,0.01111852]
[1765708776713,0.01111802,89944.0,89940.0,0.23348862]
[1765708776920,0.01311802,89944.0,89940.0,0.23348862]
[1765708777621,0.002,89944.0,89941.0,0.01111839]
[1765708777849,0.003,89944.0,89941.0,0.23348415]
[1765708778177,0.001,89944.0,89943.0,0.22236305]
[1765708778702,0.01756,89946.0,89943.0,0.2334812]
[1765708778901,0.001,89944.0,89943.0,0.01111815]
[1765708779128,0.001,89944.0,89943.0,0.2334812]
[1765708779345,0.001,89944.0,89941.0,0.23348415]
[1765708779346,0.002,89944.0,89941.0,0.23348415]
[1765708779703,0.01111815,89943.0,89940.0,0.01111852]
[1765708780214,0.01111827,89942.0,89939.0,0.01111864]
[1765708780872,0.002,89944.0,89940.0,0.23348898]
[1765708781049,0.003,89944.0,89940.0,0.23348898]
[1765708781434,0.23347603,89945.0,89940.0,0.23348898]
[1765708781588,0.01311802,89944.0,89941.0,0.01111839]
[1765708781986,0.01111802,89944.0,89941.0,0.01111839]
[1765708782374,0.01411802,89944.0,89943.0,0.00685172]
[1765708782798,0.01111802,89944.0,89943.0,0.00685172]
[1765708783246,0.01311802,89944.0,89943.0,0.00685172]
[1765708783382,0.002,89944.0,89943.0,0.00685172]
[1765708784206,0.003,89944.0,89943.0,0.00685172]
[1765708784375,0.002,89944.0,89943.0,0.00685172]
[1765708784818,0.001,89944.0,89943.0,0.00685172]
[1765708785233,0.003,89944.0,89943.0,0.00685172]
[1765708793276,0.30504344,89944.0,89943.0,0.00685172]
[1765708793966,0.25918344,89944.0,89943.0,0.00685172]
[1765708795137,0.00461287,89944.0,89943.0,0.00685172]
[1765708797404,0.003,89944.0,89943.0,0.00685172]
[1765708801428,0.003,89944.0,89943.0,0.00819685]
[1765708802622,0.003,89944.0,89943.0,0.00685172]
[1765708802830,0.003,89944.0,89943.0,1.2305599]
[1765708803024,0.00034511,89944.0,89943.0,0.92461477]
[1765708803604,0.00034511,89944.0,89943.0,0.90191477]
[1765708803938,0.00190069,89949.0,89948.0,0.22235069]
[1765708804657,0.00190069,89949.0,89948.0,0.25102686]
[1765708805245,0.00290069,89949.0,89948.0,0.25102686]
[1765708806594,0.00290069,89949.0,89948.0,0.25202686]
[1765708809018,0.00290069,89949.0,89948.0,0.02967617]
[1765708809436,0.00290069,89949.0,89948.0,0.03637765]
[1765708810647,0.04749069,89949.0,89948.0,0.03637765]
[1765708811378,0.00290069,89949.0,89948.0,0.03637765]
[1765708813612,0.11830356,89949.0,89948.0,0.00770148]
[1765708814623,0.11730356,89949.0,89948.0,0.00770148]
[1765708814994,0.11930356,89949.0,89948.0,0.00770148]
[1765708815654,0.11930356,89949.0,89948.0,0.00670148]
[1765708816088,0.12030356,89949.0,89948.0,0.00670148]
[1765708820749,0.14809708,89949.0,89948.0,0.00670148]
[1765708827783,0.05025421,89949.0,89948.0,0.00670148]
[1765708827981,0.00490069,89949.0,89948.0,0.00670148]
[1765708828312,0.00490069,89949.0,89948.0,0.04008427]
[1765708838658,0.09258069,89949.0,89948.0,0.00670148]
[1765708840131,0.05208069,89949.0,89948.0,0.00670148]
[1765708841775,0.09258069,89949.0,89948.0,0.00670148]
[1765708842134,0.05208069,89949.0,89948.0,0.00670148]
[1765708842638,0.09419356,89949.0,89948.0,0.00670148]
[1765708843722,0.05369356,89949.0,89948.0,0.00670148]
[1765708844509,0.02652356,89949.0,89948.0,0.00670148]
[1765708844711,0.00651356,89949.0,89948.0,0.00670148]
[1765708847110,0.07418356,89949.0,89948.0,0.00670148]
[1765708847317,0.10197708,89949.0,89948.0,0.00670148]
[1765708856545,0.12066708,89949.0,89948.0,0.00670148]
[1765708857438,0.09287356,89949.0,89948.0,0.00670148]
[1765708857657,0.02520356,89949.0,89948.0,0.00670148]
[1765708860143,0.02246069,89949.0,89948.0,0.00670148]
[1765708861012,0.00490069,89949.0,89948.0,0.00670148]
[1765708861372,0.02246069,89949.0,89948.0,0.00670148]
[1765708861874,0.00490069,89949.0,89948.0,0.00670148]
[1765708862024,0.02246069,89949.0,89948.0,0.00670148]
[1765708863041,0.00490069,89949.0,89948.0,0.00670148]
[1765708881213,0.2272489,89949.0,89948.0,0.00670148]
[1765708881853,0.00490069,89949.0,89948.0,0.00670148]
[1765708885968,0.2272489,89949.0,89948.0,0.00670148]
[1765708888865,0.00490069,89949.0,89948.0,0.00670148]
[1765708901217,0.06740069,89949.0,89948.0,0.00670148]
[1765708901414,0.02969069,89949.0,89948.0,0.00670148]
[1765708901617,0.00490069,89949.0,89948.0,0.00670148]
[1765708914752,0.00490069,89949.0,89948.0,0.01781963]
[1765708918378,0.00490069,89949.0,89948.0,0.00670148]
[1765708921827,0.00490069,89949.0,89948.0,0.01781864]
[1765708932432,0.00490069,89949.0,89948.0,0.01916068]
[1765708932576,0.00048115,89949.0,89948.0,0.01916068]
[1765708940599,0.00048115,89949.0,89948.0,0.01781864]
[1765708949574,0.00048115,89949.0,89948.0,0.01916068]
[1765708950333,3.648e-05,89949.0,89948.0,0.06783703]
[1765708950531,3.648e-05,89949.0,89948.0,0.06917907]
[1765708951530,0.01752,89965.0,89962.0,0.0111158]
[1765708952567,0.01752,89965.0,89963.0,0.22231361]
[1765708952766,0.49444187,90005.0,89962.0,0.0286358]
[1765708952767,0.02850444,89973.0,89968.0,0.01111506]
[1765708952957,0.01752,89970.0,89968.0,0.01111506]
[1765708953207,0.0333783,89976.0,89973.0,0.01111444]
[1765708953408,0.23338302,89981.0,89977.0,0.01111395]
[1765708953545,0.01111333,89982.0,89978.0,0.01111382]
[1765708953933,0.01111333,89982.0,89978.0,0.24450359]
[1765708954357,0.01752,89988.0,89984.0,0.01111308]
[1765708954966,0.01752,89988.0,89985.0,0.04448558]
[1765708955368,0.01752,89988.0,89986.0,0.22225679]
[1765708955572,0.2551703,89997.0,89989.0,0.01111246]
[1765708955573,0.01111185,89994.0,89989.0,0.01111246]
[1765708955810,0.02863185,89994.0,89989.0,0.01111246]
[1765708956241,0.01752,89994.0,89992.0,0.22224197]
[1765708958141,0.01752,89994.0,89992.0,0.22724197]
[1765708958575,0.01752,89994.0,89993.0,0.00535005]
[1765708960701,0.01752,89994.0,89993.0,0.03187005]
[1765708966196,0.01111111,90000.0,89997.0,0.01111148]
[1765708966395,0.23973494,90003.0,89999.0,0.01111123]
[1765708966811,0.01752,90003.0,90001.0,0.00510994]
[1765708967034,0.01752,90004.0,90000.0,0.03336649]
[1765708967200,0.01752,90004.0,90001.0,0.01111098]
[1765708967813,0.01752,90004.0,90001.0,0.01411098]
[1765708968059,0.01752,90004.0,90002.0,0.03336612]
[1765708970656,0.01752,90004.0,90002.0,0.04236612]
[1765708971019,0.01752,90004.0,90002.0,0.009]
[1765708971219,0.01752,90004.0,90003.0,0.03336556]
[1765708972620,0.01111049,90005.0,90003.0,0.03336556]
[1765708973209,0.01111049,90005.0,90004.0,0.00501991]
[1765708973737,0.23332036,90005.0,90004.0,0.00501991]
[1765708974002,0.01111049,90005.0,90004.0,0.00501991]
[1765708974742,0.01111049,90005.0,90004.0,0.01001991]
[1765708975152,0.01111049,90005.0,90004.0,0.01401991]
[1765708976801,0.06410049,90005.0,90004.0,0.01401991]
[1765708980051,0.09187672,90005.0,90004.0,0.01401991]
[1765708980562,0.23331629,90007.0,90004.0,0.01401991]
[1765708980760,0.23331629,90007.0,90004.0,0.009]
[1765708980761,0.27008968,90006.0,90004.0,0.009]
[1765708980964,0.02191,90005.0,90004.0,0.009]
[1765708981161,0.07212287,90005.0,90004.0,0.009]
[1765708981712,0.07212287,90005.0,90004.0,0.004]
[1765708981946,0.07212287,90005.0,90004.0,0.008]
[1765708982602,0.0998991,90005.0,90004.0,0.008]
[1765708982800,0.0998991,90005.0,90004.0,0.004]
[1765708983029,0.01111246,89989.0,89985.0,0.01111296]
[1765708983467,0.01111246,89989.0,89986.0,0.04448058]
[1765708984229,0.01111246,89989.0,89986.0,0.03336775]
[1765708984453,0.01211246,89989.0,89986.0,0.03336775]
[1765708984853,0.28224417,89989.0,89986.0,0.03336775]
[1765708985275,0.03108,89988.0,89986.0,0.03336775]
[1765708986011,0.25333192,89988.0,89986.0,0.03336775]
[1765708986416,0.25333192,89988.0,89987.0,0.00553016]
[1765708986712,0.25409245,89988.0,89987.0,0.00553016]
[1765708987015,0.24716192,89988.0,89987.0,0.00553016]
[1765708987391,0.24416192,89988.0,89987.0,0.00553016]
[1765708987802,0.24616192,89988.0,89987.0,0.00553016]
[1765708987995,0.24716192,89988.0,89987.0,0.00553016]
[1765708988750,0.27824192,89988.0,89987.0,0.00553016]
[1765708992748,0.27862817,89988.0,89987.0,0.00553016]
[1765708995700,0.27562817,89988.0,89987.0,0.00553016]
[1765708995930,0.27562817,89988.0,89987.0,0.01453016]
[1765709010878,0.27562817,89988.0,89987.0,0.00553016]
[1765709011086,0.27562817,89988.0,89987.0,0.01053016]
[1765709015774,0.29314817,89988.0,89987.0,0.01053016]
[1765709018109,0.32652409,89988.0,89987.0,0.01053016]
[1765709023514,0.30900409,89988.0,89987.0,0.01053016]
[1765709023717,0.32652409,89988.0,89987.0,0.01053016]
[1765709030959,0.30900409,89988.0,89987.0,0.01053016]
[1765709031185,0.32652409,89988.0,89987.0,0.01053016]
[1765709033059,0.30900409,89988.0,89987.0,0.01053016]
[1765709033215,0.32652409,89988.0,89987.0,0.01053016]
[1765709041449,0.30900409,89988.0,89987.0,0.01053016]
[1765709041670,0.32652409,89988.0,89987.0,0.01053016]
[1765709049945,0.32652409,89988.0,89987.0,0.00753016]
[1765709050146,0.32652409,89988.0,89987.0,0.01053016]
[1765709050710,0.32652409,89988.0,89987.0,0.00853016]
[1765709050864,0.32652409,89988.0,89987.0,0.01053016]
[1765709059020,0.30900409,89988.0,89987.0,0.01053016]
[1765709059219,0.32652409,89988.0,89987.0,0.01053016]
[1765709064351,0.30900409,89988.0,89987.0,0.01053016]
[1765709064547,0.32652409,89988.0,89987.0,0.01053016]
[1765709084486,0.30900409,89988.0,89987.0,0.01053016]
[1765709084688,0.32652409,89988.0,89987.0,0.01053016]
[1765709086475,0.30900409,89988.0,89987.0,0.01053016]
[1765709086656,0.32652409,89988.0,89987.0,0.01053016]
[1765709092271,0.30900409,89988.0,89987.0,0.01053016]
[1765709092448,0.29314817,89988.0,89987.0,0.01053016]
[1765709092650,0.30426236,89988.0,89987.0,0.01053016]
[1765709094067,0.25127236,89988.0,89987.0,0.01053016]
[1765709094590,0.27866236,89988.0,89987.0,0.01053016]
[1765709095556,0.29770236,89988.0,89987.0,0.01053016]
[1765709095914,0.28018236,89988.0,89987.0,0.01053016]
[1765709096134,0.29770236,89988.0,89987.0,0.01053016]
[1765709099769,0.28018236,89988.0,89987.0,0.01053016]
[1765709099975,0.29770236,89988.0,89987.0,0.01053016]
[1765709124015,0.25127236,89988.0,89987.0,0.01053016]
[1765709124622,0.27898236,89988.0,89987.0,0.01053016]
[1765709124870,0.29635236,89988.0,89987.0,0.01053016]
[1765709179798,0.22229385,89971.0,89943.0,0.13984097]
[1765709180022,0.01111778,89946.0,89942.0,0.08000489]
[1765709180159,0.01111778,89946.0,89931.0,0.01111531]
[1765709180160,0.22237541,89938.0,89931.0,0.01111531]
[1765709180362,0.23808541,89938.0,89921.0,0.08000489]
[1765709180589,0.23808541,89938.0,89922.0,0.03339267]
[1765709180590,0.26373541,89938.0,89922.0,0.03339267]
[1765709180792,0.26373541,89938.0,89937.0,0.00888]
[1765709180793,0.28125541,89938.0,89937.0,0.00888]
[1765709180992,0.22241745,89921.0,89920.0,0.0002]
[1765709181208,0.26856745,89921.0,89920.0,0.0002]
[1765709181356,0.29421745,89921.0,89920.0,0.0002]
[1765709181557,0.30179955,89921.0,89920.0,0.0002]
[1765709183292,0.30179955,89921.0,89920.0,0.0032]
[1765709183713,0.30179955,89921.0,89920.0,0.0052]
[1765709190758,0.24751955,89921.0,89920.0,0.0052]
[1765709191120,0.24751955,89921.0,89920.0,0.00721083]
[1765709197194,0.27216955,89921.0,89920.0,0.00721083]
[1765709197380,0.28764955,89921.0,89920.0,0.00721083]
[1765709201131,0.28764955,89921.0,89920.0,0.00726251]
[1765709201594,0.26299955,89921.0,89920.0,0.00726251]
[1765709202089,0.24751955,89921.0,89920.0,0.00726251]
[1765709205612,0.26299955,89921.0,89920.0,0.00726251]
[1765709205828,0.28764955,89921.0,89920.0,0.00726251]
[1765709210780,0.24751955,89921.0,89920.0,0.00726251]
[1765709210977,0.01752,89921.0,89920.0,0.00726251]
[1765709212156,0.01752,89921.0,89920.0,0.00226251]
[1765709212494,0.01952,89921.0,89920.0,0.00226251]
[1765709212838,0.02152,89921.0,89920.0,0.00226251]
[1765709213491,0.004,89921.0,89920.0,0.00226251]
[1765709222768,0.004,89921.0,89920.0,0.00362186]
[1765709230833,0.00041902,89921.0,89920.0,1.00362186]
[1765709230993,0.00041902,89921.0,89920.0,1.00226251]
[1765709235545,0.01111889,89937.0,89933.0,0.01111938]
[1765709235754,0.01111852,89940.0,89935.0,0.01111914]
[1765709235890,0.01111864,89939.0,89936.0,0.00153036]
[1765709236098,0.01111864,89939.0,89935.0,0.01111914]
[1765709236292,0.01111864,89939.0,89938.0,0.00147031]
[1765709236552,0.23991744,89946.0,89939.0,0.22237294]
[1765709236553,0.0111179,89945.0,89939.0,0.22237294]
[1765709236754,0.01212,89960.0,89946.0,0.01111778]
[1765709236755,0.01111716,89951.0,89946.0,0.01111778]
[1765709236962,0.01212,89971.0,89935.0,0.78387252]
[1765709236963,0.23344649,89957.0,89952.0,0.01111704]
[1765709237157,0.01111629,89958.0,89954.0,0.01111679]
[1765709237332,0.01111654,89956.0,89952.0,0.01111704]
[1765709238606,0.01111666,89955.0,89952.0,0.01111704]
[1765709238937,0.01111654,89956.0,89952.0,0.01111704]
[1765709239154,0.01311654,89956.0,89952.0,0.01111704]
[1765709239370,0.01511654,89956.0,89952.0,0.01111704]
[1765709239764,0.01311654,89956.0,89952.0,0.01111704]
[1765709239943,0.002,89955.0,89952.0,0.01111704]
[1765709240462,0.002,89955.0,89953.0,0.22233833]
[1765709241279,0.01111642,89957.0,89954.0,0.01111679]
[1765709241810,0.002,89956.0,89954.0,0.01111679]
[1765709242012,0.01111642,89957.0,89954.0,0.01111679]
[1765709242170,0.002,89955.0,89954.0,0.01111679]
[1765709242494,0.002,89957.0,89954.0,0.01111679]
[1765709242710,0.004,89957.0,89954.0,0.01111679]
[1765709242929,0.002,89957.0,89955.0,0.22233338]
[1765709243081,0.01111617,89959.0,89955.0,0.23345004]
[1765709243478,0.23342342,89966.0,89958.0,0.01111629]
[1765709243898,0.01111617,89959.0,89956.0,0.01111654]
[1765709244255,0.01111605,89960.0,89957.0,0.01111642]
[1765709245146,0.23343795,89960.0,89956.0,0.01111654]
[1765709245299,0.01611617,89959.0,89955.0,0.01111666]
[1765709245702,0.01111617,89959.0,89955.0,0.01111666]
[1765709245906,0.01111617,89959.0,89957.0,0.001]
[1765709246614,0.01311617,89959.0,89957.0,0.001]
[1765709246811,0.01111617,89959.0,89957.0,0.001]
[1765709247466,0.01111617,89959.0,89956.0,0.01204655]
[1765709247851,0.01411617,89959.0,89956.0,0.01111654]
[1765709248757,0.01711617,89959.0,89956.0,0.01111654]
[1765709249372,0.01711617,89959.0,89955.0,0.01111666]
[1765709250109,0.01111629,89958.0,89955.0,0.01111666]
[1765709250324,0.01111666,89955.0,89952.0,0.01111704]
[1765709250491,0.01111642,89957.0,89952.0,0.01111704]
[1765709250654,0.23344745,89956.0,89952.0,0.01111704]
[1765709250852,0.01111654,89956.0,89953.0,0.01111691]
[1765709251836,0.01311654,89956.0,89953.0,0.01111691]
[1765709252045,0.01511654,89956.0,89953.0,0.01111691]
[1765709252268,0.01311654,89956.0,89953.0,0.01111691]
[1765709252483,0.23544751,89956.0,89953.0,0.01111691]
[1765709252687,0.01511654,89956.0,89953.0,0.01111691]
[1765709253515,0.004,89956.0,89953.0,0.01111691]
[1765709253913,0.004,89956.0,89955.0,0.00096002]
[1765709254700,0.01111629,89958.0,89955.0,0.00096002]
[1765709255018,0.01111617,89959.0,89956.0,0.01111654]
[1765709256055,0.003,89958.0,89956.0,0.01111654]
[1765709257342,0.01411617,89959.0,89956.0,0.01111654]
[1765709258220,0.003,89958.0,89956.0,0.01111654]
[1765709258416,0.01411617,89959.0,89956.0,0.01111654]
[1765709258790,0.01711617,89959.0,89956.0,0.01111654]
[1765709259000,0.01411617,89959.0,89956.0,0.01111654]
[1765709259201,0.01111617,89959.0,89956.0,0.01111654]
[1765709259391,0.003,89958.0,89956.0,0.01111654]
[1765709259919,0.01111617,89959.0,89956.0,0.01111654]
[1765709260078,0.01111617,89959.0,89957.0,0.0009]
[1765709260284,0.01111617,89959.0,89956.0,0.01111654]
[1765709260550,0.003,89958.0,89956.0,0.01111654]
[1765709261056,0.01111617,89959.0,89955.0,0.01111666]
[1765709261245,0.01711617,89959.0,89955.0,0.01111666]
[1765709261523,0.01411617,89959.0,89955.0,0.01111666]
[1765709261721,0.003,89958.0,89955.0,0.01111666]
[1765709262744,0.01411629,89958.0,89955.0,0.01111666]
[1765709262947,0.01611629,89958.0,89955.0,0.01111666]
[1765709263536,0.01311629,89958.0,89955.0,0.01111666]
[1765709263695,0.01611629,89958.0,89955.0,0.01111666]
[1765709269109,0.01111642,89957.0,89954.0,0.01245391]
[1765709269527,0.01111642,89957.0,89956.0,0.00093001]
[1765709270189,0.01311642,89957.0,89956.0,0.00093001]
[1765709270397,0.002,89957.0,89956.0,0.00093001]
[1765709270601,0.004,89957.0,89956.0,0.00093001]
[1765709270784,0.2334421,89959.0,89956.0,0.00093001]
[1765709270988,0.003,89957.0,89954.0,0.01111679]
[1765709271189,0.006,89957.0,89954.0,0.01111679]
[1765709271345,0.01711642,89957.0,89954.0,0.01111679]
[1765709271991,0.01411642,89957.0,89954.0,0.01111679]
[1765709272213,0.01611642,89957.0,89954.0,0.01111679]
[1765709272824,0.01311642,89957.0,89954.0,0.01111679]
[1765709273787,0.01511642,89957.0,89954.0,0.01111679]
[1765709280690,0.004,89957.0,89954.0,0.01111679]
[1765709280886,0.004,89957.0,89954.0,0.23478801]
[1765709281049,0.004,89957.0,89956.0,0.00093001]
[1765709281771,0.004,89957.0,89956.0,0.0022671]
[1765709282124,0.002,89957.0,89956.0,0.0022671]
[1765709282327,0.005,89957.0,89956.0,0.0022671]
[1765709282653,0.00070283,89957.0,89956.0,0.0022671]
[1765709283219,0.00370283,89957.0,89956.0,1.0022671]
[1765709283365,0.00370283,89957.0,89956.0,1.00093001]
[1765709285887,0.003,89957.0,89956.0,1.00093001]
[1765709286357,0.01111493,89969.0,89966.0,0.01111531]
[1765709286710,0.01111493,89969.0,89968.0,0.00056993]
[1765709288464,0.01111493,89969.0,89968.0,0.00556993]
[1765709288923,0.01111481,89970.0,89968.0,0.00556993]
[1765709289084,0.01111481,89970.0,89968.0,0.005]
[1765709289314,0.01111481,89970.0,89969.0,0.00053993]
[1765709290497,0.01111481,89970.0,89969.0,0.00553993]
[1765709291791,0.01111481,89970.0,89969.0,0.00953993]
[1765709292446,0.02867469,89971.0,89969.0,0.00953993]
[1765709292741,0.01756,89971.0,89970.0,0.00050993]
[1765709293565,0.01756,89971.0,89970.0,0.22280625]
[1765709294130,0.01756,89971.0,89970.0,0.22680625]
[1765709295412,0.01756,89971.0,89970.0,0.23080625]
[1765709295833,0.01756,89971.0,89970.0,0.00850993]
[1765709297872,0.01111444,89973.0,89970.0,0.00850993]
[1765709298075,0.01111432,89974.0,89971.0,0.01111469]
[1765709299214,0.01111432,89974.0,89971.0,0.01511469]
[1765709300098,0.01111407,89976.0,89972.0,0.01111456]
[1765709302051,0.01111407,89976.0,89972.0,0.01411456]
[1765709302338,0.01111407,89976.0,89972.0,0.01811456]
[1765709302920,0.01111395,89977.0,89973.0,0.23340334]
[1765709304501,0.01111395,89977.0,89973.0,0.23640334]
[1765709304721,0.01111395,89977.0,89974.0,0.01111432]
[1765709305712,0.23339357,89977.0,89973.0,0.01411444]
[1765709306036,0.01111407,89976.0,89974.0,0.003]
[1765709306406,0.01111407,89976.0,89974.0,0.006]
[1765709306615,0.01111407,89976.0,89974.0,0.003]
[1765709307375,0.01111419,89975.0,89972.0,0.01111456]
[1765709307584,0.01111419,89975.0,89974.0,0.004]
[1765709307945,0.23339815,89975.0,89974.0,0.004]
[1765709308325,0.23339815,89975.0,89974.0,0.007]
[1765709308535,0.23339815,89975.0,89974.0,0.003]
[1765709308939,0.01111432,89974.0,89972.0,0.004]
[1765709309146,0.01111432,89974.0,89971.0,0.01111469]
[1765709310152,0.01111432,89974.0,89972.0,0.004]
[1765709310350,0.01111432,89974.0,89971.0,0.01111469]
[1765709310589,0.01111432,89974.0,89973.0,0.00041993]
[1765709312380,0.01111419,89975.0,89973.0,0.00341993]